[Event "December 5 Early 2023"]
[Site "https://www.chess.com"]
[Date "2023.12.05"]
[Round "1"]
[White "Sahakyan, Aleks"]
[Black "Parra Gomez, Adrian"]
[Result "1-0"]
[Board "99"]
[TimeControl "180+1"]
[WhiteFideId "13316338"]
[BlackFideId "3513106"]
[WhiteElo "2731"]
[BlackElo "2429"]
[WhiteTeam "ARM"]
[BlackTeam "CUB"]
[WhiteClock "0:00:30"]
[BlackClock "0:00:12"]

1. Nf3 {[%clk 0:02:53]}  d5 {[%clk 0:02:59]} 2. e3 {[%clk 0:02:53]}  Nf6 {[%clk 0:02:58]} 3. c4 {[%clk 0:02:53]}  e6 {[%clk 0:02:57]} 4. Nc3 {[%clk 0:02:53]}  c5 {[%clk 0:02:56]} 5. d4 {[%clk 0:02:50]}  a6 {[%clk 0:02:56]} 6. a3 {[%clk 0:02:48]}  Nc6 {[%clk 0:02:49]} 7. dxc5 {[%clk 0:02:40]}  Bxc5 {[%clk 0:02:50]} 8. b4 {[%clk 0:02:35]}  Ba7 {[%clk 0:02:29]} 9. Bb2 {[%clk 0:02:29]}  d4 {[%clk 0:02:19]} 10. exd4 {[%clk 0:02:28]}  Nxd4 {[%clk 0:02:19]} 11. Nxd4 {[%clk 0:02:28]}  Qxd4 {[%clk 0:02:16]} 12. Qxd4 {[%clk 0:02:22]}  Bxd4 {[%clk 0:02:17]} 13. Rd1 {[%clk 0:02:17]}  Be5 {[%clk 0:02:03]} 14. Bd3 {[%clk 0:02:14]}  Bd7 {[%clk 0:02:01]} 15. O-O {[%clk 0:02:10]}  O-O-O {[%clk 0:01:19]} 16. Rfe1 {[%clk 0:02:00]}  Bxc3 {[%clk 0:01:19]} 17. Bxc3 {[%clk 0:02:01]}  Ba4 {[%clk 0:01:19]} 18. Rd2 {[%clk 0:02:00]}  Rd7 {[%clk 0:01:17]} 19. Ree2 {[%clk 0:01:37]}  Rhd8 {[%clk 0:01:15]} 20. Bb1 {[%clk 0:01:34]}  Bb3 {[%clk 0:00:58]} 21. c5 {[%clk 0:01:21]}  Bc4 {[%clk 0:00:58]} 22. Rxd7 {[%clk 0:01:18]}  Rxd7 {[%clk 0:00:49]} 23. Rd2 {[%clk 0:01:16]}  Bd5 {[%clk 0:00:42]} 24. Bxf6 {[%clk 0:00:49]}  gxf6 {[%clk 0:00:43]} 25. Bxh7 {[%clk 0:00:49]}  f5 {[%clk 0:00:42]} 26. Bg8 {[%clk 0:00:42]}  Kd8 {[%clk 0:00:28]} 27. h4 {[%clk 0:00:35]}  Ke7 {[%clk 0:00:26]} 28. Rd3 {[%clk 0:00:35]}  Rd8 {[%clk 0:00:20]} 29. Rg3 {[%clk 0:00:34]}  Kf6 {[%clk 0:00:19]} 30. h5 {[%clk 0:00:31]}  e5 {[%clk 0:00:17]} 31. h6 {[%clk 0:00:30]}  f4 {[%clk 0:00:17]} 32. h7 {[%clk 0:00:29]}  fxg3 {[%clk 0:00:16]} 33. h8=Q+ {[%clk 0:00:29]}  Ke6 {[%clk 0:00:16]} 34. Bxf7+ {[%clk 0:00:28]}  Ke7 {[%clk 0:00:17]} 35. Qxd8+ {[%clk 0:00:28]}  Kxd8 {[%clk 0:00:17]} 36. Bxd5 {[%clk 0:00:29]}  gxf2+ {[%clk 0:00:12]} 37. Kxf2 {[%clk 0:00:30]} 1-0

[Event "December 5 Early 2023"]
[Site "https://www.chess.com"]
[Date "2023.12.05"]
[Round "1"]
[White "Rosh Jain"]
[Black "Schmakel, Sam"]
[Result "1-0"]
[Board "100"]
[TimeControl "180+1"]
[WhiteFideId "25789465"]
[BlackFideId "2039311"]
[WhiteElo "2427"]
[BlackElo "2731"]
[WhiteTeam "IND"]
[BlackTeam "USA"]
[WhiteClock "0:01:03"]
[BlackClock "0:00:01"]

1. e4 {[%clk 0:03:00]}  c5 {[%clk 0:02:59]} 2. Nf3 {[%clk 0:03:01]}  e6 {[%clk 0:02:58]} 3. d4 {[%clk 0:03:01]}  cxd4 {[%clk 0:02:58]} 4. Nxd4 {[%clk 0:03:01]}  Nf6 {[%clk 0:02:57]} 5. Bd3 {[%clk 0:03:00]}  Nc6 {[%clk 0:02:49]} 6. Be3 {[%clk 0:02:59]}  d5 {[%clk 0:02:47]} 7. exd5 {[%clk 0:02:59]}  Nxd5 {[%clk 0:02:47]} 8. Nxc6 {[%clk 0:02:59]}  bxc6 {[%clk 0:02:48]} 9. Bd2 {[%clk 0:02:57]}  Qb6 {[%clk 0:02:43]} 10. b3 {[%clk 0:02:57]}  Qd4 {[%clk 0:02:35]} 11. c4 {[%clk 0:02:25]}  Nb4 {[%clk 0:02:00]} 12. Be2 {[%clk 0:02:13]}  Qxa1 {[%clk 0:01:58]} 13. Bf3 {[%clk 0:02:05]}  Qxa2 {[%clk 0:01:20]} 14. O-O {[%clk 0:02:03]}  Qa6 {[%clk 0:01:19]} 15. Nc3 {[%clk 0:01:59]}  Be7 {[%clk 0:01:17]} 16. Be4 {[%clk 0:01:49]}  O-O {[%clk 0:01:16]} 17. Bb1 {[%clk 0:01:36]}  e5 {[%clk 0:01:05]} 18. Qh5 {[%clk 0:01:34]}  f5 {[%clk 0:01:05]} 19. Ne2 {[%clk 0:01:31]}  g6 {[%clk 0:00:52]} 20. Qh6 {[%clk 0:01:27]}  Be6 {[%clk 0:00:49]} 21. Bc3 {[%clk 0:01:27]}  Qa5 {[%clk 0:00:39]} 22. Nf4 {[%clk 0:01:26]}  Bf7 {[%clk 0:00:39]} 23. Nh5 {[%clk 0:01:16]}  gxh5 {[%clk 0:00:36]} 24. Bxf5 {[%clk 0:01:16]}  Bg6 {[%clk 0:00:24]} 25. Bxg6 {[%clk 0:01:15]}  Rf7 {[%clk 0:00:16]} 26. Bxf7+ {[%clk 0:01:14]}  Kxf7 {[%clk 0:00:16]} 27. Qxh7+ {[%clk 0:01:14]}  Ke6 {[%clk 0:00:17]} 28. Qxh5 {[%clk 0:01:11]}  Rg8 {[%clk 0:00:10]} 29. Rd1 {[%clk 0:01:07]}  Qa2 {[%clk 0:00:03]} 30. Qxe5+ {[%clk 0:01:06]}  Kf7 {[%clk 0:00:03]} 31. Qf5+ {[%clk 0:01:04]}  Ke8 {[%clk 0:00:04]} 32. Qd7+ {[%clk 0:01:03]}  Kf7 {[%clk 0:00:01]} 33. Bxb4 {[%clk 0:01:03]} 1-0

[Event "December 5 Early 2023"]
[Site "https://www.chess.com"]
[Date "2023.12.05"]
[Round "1"]
[White "Komov, Roman"]
[Black "Kozelov, Roman"]
[Result "0-1"]
[Board "101"]
[TimeControl "180+1"]
[WhiteFideId "24175714"]
[BlackFideId "14133377"]
[WhiteElo "2729"]
[BlackElo "2426"]
[WhiteTeam "RUS"]
[BlackTeam "UKR"]
[WhiteClock "0:00:20"]
[BlackClock "0:00:26"]

1. e4 {[%clk 0:03:00]}  e6 {[%clk 0:02:58]} 2. d4 {[%clk 0:03:00]}  d5 {[%clk 0:02:58]} 3. e5 {[%clk 0:03:01]}  b6 {[%clk 0:02:58]} 4. Nf3 {[%clk 0:02:53]}  Qd7 {[%clk 0:02:57]} 5. Nbd2 {[%clk 0:02:39]}  Ne7 {[%clk 0:02:56]} 6. h4 {[%clk 0:02:36]}  Nf5 {[%clk 0:02:54]} 7. Nb3 {[%clk 0:02:25]}  a5 {[%clk 0:02:50]} 8. a4 {[%clk 0:02:21]}  Ba6 {[%clk 0:02:48]} 9. g4 {[%clk 0:02:22]}  Ne7 {[%clk 0:02:43]} 10. h5 {[%clk 0:02:19]}  h6 {[%clk 0:02:42]} 11. Be3 {[%clk 0:02:18]}  Bxf1 {[%clk 0:02:37]} 12. Kxf1 {[%clk 0:02:19]}  Nec6 {[%clk 0:02:35]} 13. c3 {[%clk 0:02:17]}  Na6 {[%clk 0:02:29]} 14. Nc1 {[%clk 0:02:17]}  Nd8 {[%clk 0:02:25]} 15. Nd3 {[%clk 0:02:15]}  Nb7 {[%clk 0:02:25]} 16. Qb3 {[%clk 0:02:05]}  Be7 {[%clk 0:02:22]} 17. Re1 {[%clk 0:02:04]}  Bd8 {[%clk 0:02:00]} 18. Nf4 {[%clk 0:01:57]}  c5 {[%clk 0:01:58]} 19. Rg1 {[%clk 0:01:55]}  c4 {[%clk 0:01:57]} 20. Qc2 {[%clk 0:01:55]}  Be7 {[%clk 0:01:56]} 21. g5 {[%clk 0:01:53]}  O-O-O {[%clk 0:01:56]} 22. g6 {[%clk 0:01:52]}  fxg6 {[%clk 0:01:55]} 23. Qxg6 {[%clk 0:01:46]}  Nc7 {[%clk 0:01:51]} 24. Qxg7 {[%clk 0:01:38]}  Rhf8 {[%clk 0:01:16]} 25. Qxh6 {[%clk 0:01:33]}  Rf7 {[%clk 0:01:11]} 26. Ng5 {[%clk 0:01:13]}  Bxg5 {[%clk 0:01:08]} 27. Rxg5 {[%clk 0:01:14]}  Rdf8 {[%clk 0:01:08]} 28. Rg6 {[%clk 0:01:15]}  Nd8 {[%clk 0:01:05]} 29. Ke2 {[%clk 0:01:12]}  Qxa4 {[%clk 0:01:05]} 30. Rf6 {[%clk 0:00:55]}  Qc2+ {[%clk 0:00:53]} 31. Kf1 {[%clk 0:00:55]}  Kb7 {[%clk 0:00:41]} 32. Qxf8 {[%clk 0:00:46]}  Rxf8 {[%clk 0:00:42]} 33. Rxf8 {[%clk 0:00:47]}  Nc6 {[%clk 0:00:34]} 34. h6 {[%clk 0:00:47]}  Ne7 {[%clk 0:00:32]} 35. Nh5 {[%clk 0:00:45]}  Nf5 {[%clk 0:00:31]} 36. Nf6 {[%clk 0:00:38]}  Nh4 {[%clk 0:00:29]} 37. Ng4 {[%clk 0:00:19]}  Qd3+ {[%clk 0:00:27]} 38. Kg1 {[%clk 0:00:20]}  Qe4 {[%clk 0:00:27]} 39. Rf4 {[%clk 0:00:20]}  Qg2# {[%clk 0:00:26]} 0-1

[Event "December 5 Early 2023"]
[Site "https://www.chess.com"]
[Date "2023.12.05"]
[Round "1"]
[White "Romero Arzuaga, Yudel"]
[Black "Aradhya, Garg"]
[Result "1/2-1/2"]
[Board "102"]
[TimeControl "180+1"]
[WhiteFideId "3521010"]
[BlackFideId "25006746"]
[WhiteElo "2422"]
[BlackElo "2728"]
[WhiteTeam "CUB"]
[BlackTeam "IND"]
[WhiteClock "0:01:06"]
[BlackClock "0:01:25"]

1. d4 {[%clk 0:03:00]}  d5 {[%clk 0:02:59]} 2. c4 {[%clk 0:02:59]}  e6 {[%clk 0:02:59]} 3. Nc3 {[%clk 0:02:59]}  Nf6 {[%clk 0:02:59]} 4. Bg5 {[%clk 0:02:59]}  Be7 {[%clk 0:02:58]} 5. e3 {[%clk 0:03:00]}  h6 {[%clk 0:02:55]} 6. Bh4 {[%clk 0:02:59]}  O-O {[%clk 0:02:55]} 7. Nf3 {[%clk 0:02:59]}  dxc4 {[%clk 0:02:52]} 8. Bxc4 {[%clk 0:02:58]}  c5 {[%clk 0:02:53]} 9. O-O {[%clk 0:02:57]}  Nc6 {[%clk 0:02:51]} 10. dxc5 {[%clk 0:02:53]}  Qxd1 {[%clk 0:02:45]} 11. Rfxd1 {[%clk 0:02:51]}  g5 {[%clk 0:02:44]} 12. Bg3 {[%clk 0:02:50]}  Bxc5 {[%clk 0:02:44]} 13. Ne5 {[%clk 0:02:47]}  Nh5 {[%clk 0:02:00]} 14. Nxc6 {[%clk 0:02:42]}  Nxg3 {[%clk 0:02:00]} 15. hxg3 {[%clk 0:02:34]}  bxc6 {[%clk 0:02:00]} 16. Rac1 {[%clk 0:02:35]}  Be7 {[%clk 0:01:59]} 17. Ne4 {[%clk 0:02:33]}  a5 {[%clk 0:01:56]} 18. Be2 {[%clk 0:02:26]}  Re8 {[%clk 0:01:56]} 19. Bf3 {[%clk 0:02:24]}  Bb7 {[%clk 0:01:56]} 20. Nc5 {[%clk 0:02:24]}  Bxc5 {[%clk 0:01:56]} 21. Rxc5 {[%clk 0:02:25]}  Ra6 {[%clk 0:01:53]} 22. Rdc1 {[%clk 0:02:21]}  Rc8 {[%clk 0:01:51]} 23. Rd1 {[%clk 0:02:09]}  Kf8 {[%clk 0:01:42]} 24. b3 {[%clk 0:01:59]}  Ke7 {[%clk 0:01:40]} 25. e4 {[%clk 0:01:56]}  Rd8 {[%clk 0:01:38]} 26. Rdc1 {[%clk 0:01:55]}  a4 {[%clk 0:01:37]} 27. e5 {[%clk 0:01:53]}  axb3 {[%clk 0:01:36]} 28. axb3 {[%clk 0:01:53]}  Rd3 {[%clk 0:01:33]} 29. Bxc6 {[%clk 0:01:48]}  Bxc6 {[%clk 0:01:32]} 30. Rxc6 {[%clk 0:01:49]}  Rxc6 {[%clk 0:01:33]} 31. Rxc6 {[%clk 0:01:49]}  Rxb3 {[%clk 0:01:33]} 32. Rc7+ {[%clk 0:01:49]}  Kf8 {[%clk 0:01:33]} 33. f3 {[%clk 0:01:39]}  h5 {[%clk 0:01:29]} 34. Rc4 {[%clk 0:01:26]}  Re3 {[%clk 0:01:28]} 35. Rc5 {[%clk 0:01:25]}  Kg7 {[%clk 0:01:28]} 36. Kf2 {[%clk 0:01:25]}  Ra3 {[%clk 0:01:28]} 37. f4 {[%clk 0:01:25]}  Kg6 {[%clk 0:01:28]} 38. Rc7 {[%clk 0:01:24]}  h4 {[%clk 0:01:27]} 39. gxh4 {[%clk 0:01:17]}  gxf4 {[%clk 0:01:27]} 40. h5+ {[%clk 0:01:14]}  Kxh5 {[%clk 0:01:25]} 41. Rxf7 {[%clk 0:01:13]}  Kg4 {[%clk 0:01:25]} 42. Rf6 {[%clk 0:01:10]}  Ra2+ {[%clk 0:01:24]} 43. Kg1 {[%clk 0:01:10]}  Ra5 {[%clk 0:01:25]} 44. Rxe6 {[%clk 0:01:08]}  Kf5 {[%clk 0:01:24]} 45. Re8 {[%clk 0:01:08]}  Rxe5 {[%clk 0:01:24]} 46. Rxe5+ {[%clk 0:01:05]}  Kxe5 {[%clk 0:01:25]} 47. Kf2 {[%clk 0:01:06]}  Ke4 {[%clk 0:01:25]} 48. Ke2 {[%clk 0:01:06]}  Kf5 {[%clk 0:01:24]} 49. Kf3 {[%clk 0:01:06]}  Kg5 {[%clk 0:01:25]} 50. g3 {[%clk 0:01:05]}  fxg3 {[%clk 0:01:25]} 51. Kxg3 {[%clk 0:01:06]} 1/2-1/2

[Event "December 5 Early 2023"]
[Site "https://www.chess.com"]
[Date "2023.12.05"]
[Round "1"]
[White "Nasta, Kiren Vivek"]
[Black "Karthik Rajaa"]
[Result "0-1"]
[Board "104"]
[TimeControl "180+1"]
[WhiteFideId "30943612"]
[BlackFideId "25035215"]
[WhiteElo "2417"]
[BlackElo "2726"]
[WhiteTeam "USA"]
[BlackTeam "IND"]
[WhiteClock "0:00:43"]
[BlackClock "0:00:29"]

1. e4 {[%clk 0:03:00]}  c6 {[%clk 0:03:00]} 2. d4 {[%clk 0:03:00]}  d5 {[%clk 0:03:00]} 3. Nc3 {[%clk 0:03:01]}  dxe4 {[%clk 0:03:00]} 4. Bc4 {[%clk 0:03:02]}  Nf6 {[%clk 0:03:01]} 5. f3 {[%clk 0:03:02]}  e3 {[%clk 0:02:48]} 6. Bxe3 {[%clk 0:03:03]}  Nbd7 {[%clk 0:02:39]} 7. Nge2 {[%clk 0:02:51]}  Nb6 {[%clk 0:02:37]} 8. Bd3 {[%clk 0:02:50]}  g6 {[%clk 0:02:34]} 9. O-O {[%clk 0:02:49]}  Bg7 {[%clk 0:02:33]} 10. a4 {[%clk 0:02:46]}  Nbd5 {[%clk 0:02:27]} 11. Bf2 {[%clk 0:02:46]}  Be6 {[%clk 0:02:15]} 12. Ne4 {[%clk 0:02:45]}  Nb4 {[%clk 0:02:10]} 13. Nxf6+ {[%clk 0:02:26]}  exf6 {[%clk 0:02:11]} 14. Nf4 {[%clk 0:02:19]}  Nxd3 {[%clk 0:02:01]} 15. Nxe6 {[%clk 0:02:16]}  Nxf2 {[%clk 0:01:56]} 16. Nxg7+ {[%clk 0:02:12]}  Kf8 {[%clk 0:01:55]} 17. Ne6+ {[%clk 0:02:03]}  fxe6 {[%clk 0:01:55]} 18. Rxf2 {[%clk 0:02:04]}  Kf7 {[%clk 0:01:54]} 19. Qd3 {[%clk 0:01:59]}  Qd7 {[%clk 0:01:49]} 20. Re2 {[%clk 0:01:58]}  Rhe8 {[%clk 0:01:46]} 21. Rae1 {[%clk 0:01:58]}  Rad8 {[%clk 0:01:46]} 22. c3 {[%clk 0:01:57]}  c5 {[%clk 0:01:42]} 23. Qc4 {[%clk 0:01:53]}  cxd4 {[%clk 0:01:40]} 24. cxd4 {[%clk 0:01:51]}  Qxd4+ {[%clk 0:01:39]} 25. Qxd4 {[%clk 0:01:48]}  Rxd4 {[%clk 0:01:40]} 26. Rc1 {[%clk 0:01:49]}  Rxa4 {[%clk 0:01:38]} 27. Rc7+ {[%clk 0:01:49]}  Re7 {[%clk 0:01:38]} 28. Rec2 {[%clk 0:01:50]}  Rd4 {[%clk 0:01:35]} 29. Kf2 {[%clk 0:01:47]}  Rd2+ {[%clk 0:01:29]} 30. Ke3 {[%clk 0:01:45]}  Rxc2 {[%clk 0:01:29]} 31. Rxc2 {[%clk 0:01:46]}  e5 {[%clk 0:01:28]} 32. Rc8 {[%clk 0:01:46]}  Rd7 {[%clk 0:01:28]} 33. Rh8 {[%clk 0:01:45]}  Ke6 {[%clk 0:01:28]} 34. Re8+ {[%clk 0:01:45]}  Re7 {[%clk 0:01:27]} 35. Ra8 {[%clk 0:01:46]}  a6 {[%clk 0:01:27]} 36. Rc8 {[%clk 0:01:46]}  f5 {[%clk 0:01:26]} 37. g3 {[%clk 0:01:46]}  Rd7 {[%clk 0:01:25]} 38. h4 {[%clk 0:01:45]}  Kd5 {[%clk 0:01:14]} 39. Kd3 {[%clk 0:01:43]}  a5 {[%clk 0:01:01]} 40. Ra8 {[%clk 0:01:41]}  Kc5+ {[%clk 0:01:01]} 41. Ke2 {[%clk 0:01:39]}  Kb4 {[%clk 0:01:00]} 42. Re8 {[%clk 0:01:36]}  e4 {[%clk 0:00:52]} 43. fxe4 {[%clk 0:01:37]}  fxe4 {[%clk 0:00:53]} 44. Rxe4+ {[%clk 0:01:37]}  Kb3 {[%clk 0:00:53]} 45. Re5 {[%clk 0:01:35]}  a4 {[%clk 0:00:40]} 46. Rb5+ {[%clk 0:01:35]}  Kc4 {[%clk 0:00:40]} 47. Rb6 {[%clk 0:01:34]}  Kc5 {[%clk 0:00:40]} 48. Re6 {[%clk 0:01:32]}  b5 {[%clk 0:00:40]} 49. h5 {[%clk 0:01:30]}  gxh5 {[%clk 0:00:40]} 50. Re5+ {[%clk 0:01:29]}  Kc4 {[%clk 0:00:39]} 51. Rxh5 {[%clk 0:01:29]}  b4 {[%clk 0:00:39]} 52. Rh4+ {[%clk 0:01:01]}  Kb3 {[%clk 0:00:39]} 53. Re4 {[%clk 0:00:57]}  Rb7 {[%clk 0:00:39]} 54. Kd2 {[%clk 0:00:56]}  Kxb2 {[%clk 0:00:39]} 55. g4 {[%clk 0:00:56]}  b3 {[%clk 0:00:39]} 56. Rxa4 {[%clk 0:00:56]}  Rd7+ {[%clk 0:00:36]} 57. Ke2 {[%clk 0:00:56]}  Kc3 {[%clk 0:00:35]} 58. Ra8 {[%clk 0:00:55]}  b2 {[%clk 0:00:29]} 59. Rc8+ {[%clk 0:00:52]}  Kb3 {[%clk 0:00:29]} 60. Rb8+ {[%clk 0:00:52]}  Kc2 {[%clk 0:00:29]} 61. Rc8+ {[%clk 0:00:51]}  Kb1 {[%clk 0:00:29]} 62. Rb8 {[%clk 0:00:48]}  Rd4 {[%clk 0:00:29]} 63. g5 {[%clk 0:00:48]}  Kc2 {[%clk 0:00:28]} 64. Rc8+ {[%clk 0:00:48]}  Kb3 {[%clk 0:00:28]} 65. Rb8+ {[%clk 0:00:44]}  Rb4 {[%clk 0:00:28]} 66. Rxb4+ {[%clk 0:00:44]}  Kxb4 {[%clk 0:00:29]} 67. g6 {[%clk 0:00:43]}  hxg6 {[%clk 0:00:29]} 0-1

[Event "December 5 Early 2023"]
[Site "https://www.chess.com"]
[Date "2023.12.05"]
[Round "1"]
[White "Timmermans, Mark"]
[Black "Latorre, Vincent"]
[Result "0-1"]
[Board "105"]
[TimeControl "180+1"]
[WhiteFideId "1026399"]
[BlackFideId "2636891"]
[WhiteElo "2725"]
[BlackElo "2414"]
[WhiteTeam "NED"]
[BlackTeam "CAN"]
[WhiteClock "0:00:30"]
[BlackClock "0:00:48"]

1. b4 {[%clk 0:03:00]}  Nf6 {[%clk 0:02:54]} 2. Bb2 {[%clk 0:03:00]}  g6 {[%clk 0:02:47]} 3. c4 {[%clk 0:03:00]}  Bg7 {[%clk 0:02:47]} 4. e3 {[%clk 0:03:00]}  O-O {[%clk 0:02:44]} 5. a4 {[%clk 0:02:59]}  a5 {[%clk 0:02:43]} 6. b5 {[%clk 0:02:59]}  d6 {[%clk 0:02:43]} 7. Nf3 {[%clk 0:02:59]}  e5 {[%clk 0:02:42]} 8. Be2 {[%clk 0:03:00]}  Nbd7 {[%clk 0:02:41]} 9. O-O {[%clk 0:03:00]}  h5 {[%clk 0:02:26]} 10. Nc3 {[%clk 0:02:59]}  e4 {[%clk 0:02:23]} 11. Nd4 {[%clk 0:02:59]}  Nc5 {[%clk 0:02:14]} 12. f3 {[%clk 0:02:59]}  exf3 {[%clk 0:02:07]} 13. Bxf3 {[%clk 0:03:00]}  Nd3 {[%clk 0:02:06]} 14. Ba3 {[%clk 0:02:57]}  h4 {[%clk 0:01:58]} 15. Qe2 {[%clk 0:02:51]}  Ne5 {[%clk 0:01:57]} 16. c5 {[%clk 0:02:50]}  Nxf3+ {[%clk 0:01:56]} 17. Qxf3 {[%clk 0:02:46]}  h3 {[%clk 0:01:55]} 18. gxh3 {[%clk 0:02:44]}  Qe7 {[%clk 0:01:49]} 19. b6 {[%clk 0:02:02]}  dxc5 {[%clk 0:01:43]} 20. bxc7 {[%clk 0:02:02]}  Qxc7 {[%clk 0:01:31]} 21. Ncb5 {[%clk 0:02:02]}  Qe5 {[%clk 0:01:28]} 22. Nb3 {[%clk 0:01:56]}  Bf5 {[%clk 0:01:24]} 23. Nxc5 {[%clk 0:01:53]}  Rfe8 {[%clk 0:01:24]} 24. d4 {[%clk 0:01:43]}  Qxe3+ {[%clk 0:01:23]} 25. Qxe3 {[%clk 0:01:44]}  Rxe3 {[%clk 0:01:23]} 26. Nxb7 {[%clk 0:01:45]}  Bxh3 {[%clk 0:01:19]} 27. Rfe1 {[%clk 0:01:44]}  Rae8 {[%clk 0:01:18]} 28. Rxe3 {[%clk 0:01:36]}  Rxe3 {[%clk 0:01:18]} 29. Nxa5 {[%clk 0:01:37]}  Nd5 {[%clk 0:01:10]} 30. Nc6 {[%clk 0:01:35]}  Re2 {[%clk 0:01:07]} 31. Bd6 {[%clk 0:01:22]}  Bh6 {[%clk 0:01:05]} 32. Ra3 {[%clk 0:00:59]}  Be3+ {[%clk 0:00:57]} 33. Rxe3 {[%clk 0:00:59]}  Nxe3 {[%clk 0:00:53]} 34. Ne5 {[%clk 0:00:47]}  Rg2+ {[%clk 0:00:48]} 35. Kh1 {[%clk 0:00:30]}  Rf2 {[%clk 0:00:48]} 0-1

[Event "December 5 Early 2023"]
[Site "https://www.chess.com"]
[Date "2023.12.05"]
[Round "1"]
[White "Skaric, Djuro"]
[Black "Gabrielian, Artur"]
[Result "0-1"]
[Board "106"]
[TimeControl "180+1"]
[WhiteFideId "934569"]
[BlackFideId "4131002"]
[WhiteElo "2412"]
[BlackElo "2723"]
[WhiteTeam "SRB"]
[BlackTeam "RUS"]
[WhiteClock "0:01:16"]
[BlackClock "0:01:12"]

1. g3 {[%clk 0:03:00]}  g6 {[%clk 0:02:57]} 2. Bg2 {[%clk 0:03:00]}  Bg7 {[%clk 0:02:57]} 3. d3 {[%clk 0:03:01]}  d6 {[%clk 0:02:56]} 4. Nc3 {[%clk 0:03:02]}  c5 {[%clk 0:02:56]} 5. e4 {[%clk 0:03:02]}  Nc6 {[%clk 0:02:56]} 6. f4 {[%clk 0:03:03]}  Nf6 {[%clk 0:02:56]} 7. Nf3 {[%clk 0:03:03]}  Rb8 {[%clk 0:02:56]} 8. O-O {[%clk 0:03:03]}  b5 {[%clk 0:02:56]} 9. h3 {[%clk 0:03:04]}  b4 {[%clk 0:02:56]} 10. Ne2 {[%clk 0:03:04]}  O-O {[%clk 0:02:56]} 11. g4 {[%clk 0:03:04]}  a5 {[%clk 0:02:56]} 12. Ng3 {[%clk 0:03:03]}  Ba6 {[%clk 0:02:54]} 13. Rf2 {[%clk 0:03:01]}  Ne8 {[%clk 0:02:53]} 14. Rb1 {[%clk 0:03:01]}  Nc7 {[%clk 0:02:52]} 15. Be3 {[%clk 0:03:00]}  Nd4 {[%clk 0:02:52]} 16. g5 {[%clk 0:02:59]}  Nxf3+ {[%clk 0:02:50]} 17. Qxf3 {[%clk 0:02:57]}  Ne6 {[%clk 0:02:50]} 18. f5 {[%clk 0:02:51]}  Nd4 {[%clk 0:02:49]} 19. Qg4 {[%clk 0:02:49]}  a4 {[%clk 0:02:45]} 20. Kh2 {[%clk 0:02:48]}  b3 {[%clk 0:02:44]} 21. axb3 {[%clk 0:02:48]}  axb3 {[%clk 0:02:44]} 22. c3 {[%clk 0:02:48]}  Nc2 {[%clk 0:02:44]} 23. Bf4 {[%clk 0:02:47]}  Bxd3 {[%clk 0:02:43]} 24. Rg1 {[%clk 0:02:45]}  c4 {[%clk 0:02:27]} 25. h4 {[%clk 0:02:33]}  Rb5 {[%clk 0:02:25]} 26. h5 {[%clk 0:02:32]}  Be5 {[%clk 0:02:20]} 27. Bh3 {[%clk 0:02:29]}  Qb6 {[%clk 0:02:13]} 28. Rgg2 {[%clk 0:02:23]}  Ne3 {[%clk 0:02:08]} 29. Qh4 {[%clk 0:02:21]}  Nxg2 {[%clk 0:02:08]} 30. Kxg2 {[%clk 0:02:19]}  Bxf4 {[%clk 0:02:03]} 31. Qxf4 {[%clk 0:02:18]}  gxh5 {[%clk 0:01:46]} 32. Nxh5 {[%clk 0:02:13]}  Qc5 {[%clk 0:01:42]} 33. Qh4 {[%clk 0:01:54]}  Qe5 {[%clk 0:01:40]} 34. Ng3 {[%clk 0:01:53]}  Kh8 {[%clk 0:01:24]} 35. g6 {[%clk 0:01:42]}  fxg6 {[%clk 0:01:24]} 36. fxg6 {[%clk 0:01:39]}  Rxf2+ {[%clk 0:01:23]} 37. Kxf2 {[%clk 0:01:37]}  Qf6+ {[%clk 0:01:23]} 38. Qxf6+ {[%clk 0:01:37]}  exf6 {[%clk 0:01:23]} 39. gxh7 {[%clk 0:01:35]}  Kxh7 {[%clk 0:01:21]} 40. Ke3 {[%clk 0:01:35]}  Ra5 {[%clk 0:01:19]} 41. Nf5 {[%clk 0:01:31]}  Ra2 {[%clk 0:01:19]} 42. Nxd6 {[%clk 0:01:31]}  Rxb2 {[%clk 0:01:19]} 43. Kd4 {[%clk 0:01:31]}  Rh2 {[%clk 0:01:18]} 44. Bf5+ {[%clk 0:01:30]}  Kh6 {[%clk 0:01:18]} 45. Nxc4 {[%clk 0:01:30]}  Bxc4 {[%clk 0:01:18]} 46. Kxc4 {[%clk 0:01:30]}  b2 {[%clk 0:01:18]} 47. e5 {[%clk 0:01:30]}  Kg5 {[%clk 0:01:14]} 48. Bd3 {[%clk 0:01:23]}  fxe5 {[%clk 0:01:13]} 49. Kd5 {[%clk 0:01:22]}  Kf4 {[%clk 0:01:13]} 50. c4 {[%clk 0:01:16]}  Rd2 {[%clk 0:01:12]} 0-1

[Event "December 5 Early 2023"]
[Site "https://www.chess.com"]
[Date "2023.12.05"]
[Round "1"]
[White "Pakleza, Zbigniew"]
[Black "Marchesich, Giovanni"]
[Result "1-0"]
[Board "107"]
[TimeControl "180+1"]
[WhiteFideId "1119290"]
[BlackFideId "2824790"]
[WhiteElo "2719"]
[BlackElo "2412"]
[WhiteTeam "POL"]
[BlackTeam "ITA"]
[WhiteClock "0:02:26"]
[BlackClock "0:01:37"]

1. d4 {[%clk 0:03:00]}  Nf6 {[%clk 0:02:59]} 2. Nf3 {[%clk 0:03:00]}  c5 {[%clk 0:02:59]} 3. c3 {[%clk 0:03:00]}  b6 {[%clk 0:02:58]} 4. Bf4 {[%clk 0:02:59]}  Bb7 {[%clk 0:02:58]} 5. e3 {[%clk 0:02:59]}  g6 {[%clk 0:02:57]} 6. Bc4 {[%clk 0:03:00]}  Bg7 {[%clk 0:02:55]} 7. dxc5 {[%clk 0:02:59]}  bxc5 {[%clk 0:02:53]} 8. Qb3 {[%clk 0:02:58]}  Bxf3 {[%clk 0:02:45]} 9. Bxf7+ {[%clk 0:02:58]}  Kf8 {[%clk 0:02:44]} 10. gxf3 {[%clk 0:02:59]}  e6 {[%clk 0:02:41]} 11. Bxe6 {[%clk 0:02:59]}  dxe6 {[%clk 0:02:41]} 12. Qxe6 {[%clk 0:03:00]}  Ne8 {[%clk 0:02:25]} 13. Nd2 {[%clk 0:02:57]}  Qd7 {[%clk 0:02:20]} 14. Qc4 {[%clk 0:02:50]}  Qc6 {[%clk 0:01:52]} 15. Ne4 {[%clk 0:02:42]}  Nd7 {[%clk 0:01:51]} 16. Ng5 {[%clk 0:02:29]}  Ne5 {[%clk 0:01:37]} 17. Bxe5 {[%clk 0:02:26]} 1-0